bitfinex/quotes_ETHUSD_20260208
["timestamp","ask_amount","ask_price","bid_price","bid_amount"]
[1770560484631,1.08199205,2121.8,2120.5,1.04828775]
[1770560485626,1.08199205,2121.8,2120.6,1.17891162]
[1770560486029,1.50013538,2122.0,2120.8,1.04828775]
[1770560486030,1.40395437,2122.0,2120.8,1.04828775]
[1770560486611,0.32196232,2122.0,2121.0,1.04828775]
[1770560486818,1.08199205,2121.9,2121.1,3.296]
[1770560487334,1.08199205,2121.9,2121.2,2.7997]
[1770560487705,1.08199205,2121.7,2121.2,2.7997]
[1770560489031,1.08199205,2121.7,2121.2,3.97826588]
[1770560490013,2.58213042,2122.0,2121.2,3.97826588]
[1770560490840,1.40395437,2122.0,2121.2,3.97826588]
[1770560491852,1.40395437,2122.0,2121.2,1.17856588]
[1770560492048,0.32196232,2122.0,2121.3,2.7997]
[1770560492832,0.32196232,2122.0,2121.3,3.84798775]
[1770560494442,0.32196232,2122.0,2121.4,1.17846705]
[1770560494649,1.08199205,2121.9,2121.3,3.97818601]
[1770560495631,0.001,2121.8,2121.3,3.97818601]
[1770560496543,1.08299205,2121.8,2121.3,3.97822255]
[1770560496923,0.001,2121.8,2121.3,3.97822255]
[1770560497818,1.08299205,2121.8,2121.3,2.7997]
[1770560498320,1.08299205,2121.8,2120.5,3.295]
[1770560498545,1.08199205,2121.6,2120.6,2.7997]
[1770560498861,1.08199205,2121.5,2120.1,7.51627966]
[1770560499027,1.08199205,2121.3,2120.2,1.17912961]
[1770560499363,1.08199205,2121.0,2120.1,2.7997]
[1770560499921,1.08199205,2120.7,2120.0,0.0011]
[1770560500259,1.08199205,2120.6,2119.8,0.0011]
[1770560500548,1.08199205,2120.9,2119.9,3.97896287]
[1770560501224,1.08199205,2120.9,2120.0,2.7997]
[1770560502620,1.08199205,2120.7,2120.0,3.97892922]
[1770560502824,1.08199205,2120.7,2120.0,2.7997]
[1770560504734,1.08199205,2120.5,2120.0,2.7997]
[1770560505539,1.08199205,2120.5,2120.0,1.60985017]
[1770560505728,1.10140036,2120.4,2119.8,0.0011]
[1770560505929,1.10140036,2120.4,2119.9,1.60985017]
[1770560506131,1.10140036,2120.4,2119.4,0.0011]
[1770560506856,1.10140036,2120.2,2119.4,0.0011]
[1770560508165,1.14845586,2120.2,2119.4,0.0011]
[1770560508359,1.14845586,2120.2,2119.6,0.0011]
[1770560508842,1.10140036,2120.0,2119.6,0.0011]
[1770560509157,1.10140036,2120.0,2119.4,0.0011]
[1770560509455,1.17918966,2120.1,2119.4,0.0011]
[1770560510049,1.10140036,2120.0,2119.4,0.0011]
[1770560512165,2.28070127,2119.9,2119.4,0.0011]
[1770560512533,1.17930091,2119.9,2119.4,0.0011]
[1770560513363,1.10140036,2119.8,2119.4,0.0011]
[1770560513944,1.10140036,2119.7,2119.4,0.0011]
[1770560514250,1.10140036,2119.7,2119.1,0.0011]
[1770560514452,1.17946782,2119.6,2119.1,0.0011]
[1770560517474,1.1794523,2119.7,2119.1,0.0011]
[1770560520168,1.1794523,2119.7,2119.3,0.0011]
[1770560520973,8.01448106,2119.8,2119.3,0.0011]
[1770560520974,3.298,2119.8,2119.3,0.0011]
[1770560521774,0.001,2119.8,2119.3,1.09214599]
[1770560522870,1.17904822,2120.4,2119.3,0.0011]
[1770560523077,0.001,2120.5,2119.4,1.09104599]
[1770560523643,2.28070127,2119.9,2119.3,0.0011]
[1770560524068,0.0470555,2119.7,2119.3,0.0011]
[1770560524257,0.001,2119.8,2119.3,0.0011]
[1770560526674,1.10240036,2119.8,2119.3,0.0011]
[1770560527379,0.0470555,2119.7,2119.3,0.0011]
[1770560527978,2.28186818,2119.6,2119.3,0.0011]
[1770560528152,2.28186818,2119.6,2118.9,0.0011]
[1770560528153,1.14845586,2119.4,2118.9,0.0011]
[1770560528477,4.44645586,2119.4,2118.9,0.0011]
[1770560528678,3.298,2119.4,2118.9,0.0011]
[1770560528858,0.001,2119.3,2118.9,0.0011]
[1770560529057,0.0480555,2119.3,2118.9,0.0011]
[1770560530265,2.2820908,2119.2,2118.9,0.0011]
[1770560530469,2.2810908,2119.2,2118.9,0.0001]
[1770560530868,1.14845586,2119.0,2118.3,0.0011]
[1770560531675,1.17969044,2119.2,2118.3,0.0011]
[1770560531876,0.0470555,2119.0,2118.3,0.0011]
[1770560532469,3.298,2119.2,2118.3,1.09214599]
[1770560532858,4.4777203,2119.2,2119.1,0.0011]
[1770560533294,3.298,2119.2,2119.1,0.0011]
[1770560533475,4.47769044,2119.2,2119.1,0.0011]
[1770560533683,0.001,2119.6,2119.1,0.0011]
[1770560533990,1.17938731,2119.8,2119.1,0.0011]
[1770560534193,1.17933632,2119.9,2119.1,0.0011]
[1770560534398,1.22739182,2119.9,2119.1,0.0011]
[1770560534704,8.01502838,2120.0,2119.1,1.20888136]
[1770560534705,3.298,2120.0,2119.1,1.20888136]
[1770560535887,0.0470555,2119.9,2119.1,0.0011]
[1770560536676,1.18035654,2119.8,2119.1,0.0011]
[1770560538164,0.001,2119.8,2119.1,0.0011]
[1770560540618,0.001,2119.8,2119.1,1.228169]
[1770560540971,0.001,2119.8,2119.1,0.0011]
[1770560541269,0.0480555,2119.8,2119.1,0.0011]
[1770560541477,0.0480555,2119.8,2118.9,0.00036525]
[1770560541798,0.0480555,2119.8,2118.8,1.227069]
[1770560541799,0.0480555,2119.8,2118.8,1.22644751]
[1770560542607,1.17941218,2119.7,2118.8,1.17987195]
[1770560542974,0.001,2119.6,2118.8,1.17987195]
[1770560543499,0.001,2119.6,2118.9,1.227069]
[1770560544989,0.001,2119.6,2118.9,1.17982349]
[1770560545190,0.001,2119.6,2119.0,0.0011]
[1770560545365,0.002,2119.6,2119.0,0.0011]
[1770560547797,0.002,2119.6,2119.0,0.000205]
[1770560547980,0.002,2119.6,2118.8,0.00036525]
[1770560548175,0.002,2119.6,2118.7,1.17996884]
[1770560548176,0.002,2119.6,2118.7,2.40641635]
[1770560549695,0.002,2119.6,2118.8,1.227069]
[1770560549873,0.002,2119.6,2119.0,1.227069]
[1770560551877,0.001,2119.5,2119.2,1.227069]
[1770560552406,1.17896722,2120.5,2119.3,1.227069]
[1770560552601,0.001,2120.4,2119.3,1.227069]
[1770560553099,0.0470555,2121.0,2119.5,1.227069]
[1770560553100,0.001,2120.3,2119.5,1.227069]
[1770560553276,1.17977153,2120.9,2119.5,1.227069]
[1770560553476,0.001,2120.9,2119.5,1.227069]
[1770560553875,0.001,2120.9,2119.9,1.227069]
[1770560555984,0.001,2120.9,2120.1,1.227069]
[1770560556286,0.001,2120.9,2120.0,1.17924528]
[1770560557301,0.001,2120.9,2120.1,1.227069]
[1770560557707,0.001,2120.9,2120.0,1.17924528]
[1770560558191,1.17974487,2120.9,2119.9,4.71698113]
[1770560558689,2.30541045,2120.9,2119.9,4.71698113]
[1770560559298,1.17974487,2120.9,2119.9,4.71698113]
[1770560559605,0.001,2120.9,2120.0,1.227069]
[1770560560183,4.71459164,2121.1,2120.1,1.17918966]
[1770560560523,0.001,2121.0,2120.1,1.17918966]
[1770560560707,1.12666558,2121.0,2120.1,1.17918966]
[1770560560883,0.001,2121.0,2120.1,1.17918966]
[1770560561082,1.17863372,2121.1,2120.1,1.17918966]
[1770560561405,0.001,2120.9,2120.1,1.17918966]
[1770560562208,0.001,2120.9,2120.2,1.227069]
[1770560562416,0.001,2120.9,2120.3,1.17907843]
[1770560564710,0.001,2120.9,2120.4,1.227069]
[1770560565394,1.17839804,2121.6,2120.4,1.227069]
[1770560565591,0.001,2121.5,2120.4,1.227069]
[1770560566492,0.001,2121.5,2120.6,1.18557228]
[1770560568212,0.001,2121.5,2120.5,1.17896722]
[1770560568213,1.16518251,2121.5,2120.5,1.17896722]
[1770560569008,0.001,2121.5,2120.5,1.18557228]
[1770560569611,0.001,2121.3,2120.5,1.18557228]
[1770560570631,0.001,2121.2,2120.5,1.18557228]
[1770560571514,0.001,2121.2,2120.6,1.17891162]
[1770560574725,0.001,2121.2,2120.3,4.7163004]
[1770560575213,0.001,2121.2,2120.3,5.90187268]
[1770560576144,1.16518251,2121.2,2120.3,1.17907843]
[1770560576832,1.17863372,2121.1,2120.2,4.7164435]
[1770560577036,1.16418251,2121.0,2120.2,1.17913404]
[1770560577341,1.16518251,2121.0,2120.2,1.17913404]
[1770560579233,2.34292738,2120.9,2120.1,0.0011]
[1770560579831,1.16518251,2120.8,2120.1,0.0011]
[1770560580738,3.296,2120.7,2120.1,0.0001]
[1770560581034,1.17874487,2120.9,2120.1,0.0001]
[1770560581530,1.17874487,2120.9,2120.4,0.0011]
[1770560584535,9.17495252,2121.0,2120.4,0.0011]
[1770560584536,5.63888753,2121.0,2120.4,0.0011]
[1770560587037,1.16418251,2120.9,2120.4,0.0011]
[1770560589440,1.17880045,2120.8,2120.4,0.0011]
[1770560590341,1.17878865,2120.9,2120.4,0.0011]
[1770560590848,4.47469304,2121.0,2120.4,0.0011]
[1770560591731,1.16418251,2120.9,2120.4,0.0011]
[1770560592043,1.16418251,2120.9,2120.1,0.0001]
[1770560592217,1.21123801,2120.9,2120.1,0.0001]
[1770560592840,1.16418251,2120.5,2120.1,0.0001]
[1770560593052,1.16418251,2120.3,2120.1,0.0001]
[1770560593225,1.16418251,2120.3,2119.9,0.0011]
[1770560593626,1.17913404,2120.2,2119.9,0.0011]
[1770560594344,2.43546108,2120.2,2119.9,0.0011]
[1770560595224,2.43546108,2120.2,2120.0,0.0011]
[1770560595668,1.27179804,2120.1,2120.0,0.0011]
[1770560595822,1.27179804,2120.1,2119.3,0.0011]
[1770560596127,1.27179804,2120.1,2119.4,0.0011]
[1770560597524,1.27179804,2119.9,2119.4,0.0011]
[1770560597724,1.17941218,2119.7,2119.4,0.0011]
[1770560598546,3.2959,2119.8,2119.3,0.0011]
[1770560598741,4.47525687,2119.8,2119.3,1.19378758]
[1770560599131,4.47525687,2119.8,2119.3,0.0011]
[1770560601040,5.98857492,2120.1,2119.3,1.19378758]
[1770560601041,4.47618966,2120.1,2119.3,1.19378758]
[1770560601356,5.7479877,2120.1,2119.3,0.0011]
[1770560601853,3.297,2120.1,2119.3,1.19378758]
[1770560602053,3.297,2120.1,2119.5,1.19268758]
[1770560602626,4.47606383,2120.4,2119.5,1.19268758]
[1770560604160,4.47606383,2120.4,2119.5,2.37220796]
[1770560606729,4.47606383,2120.4,2119.6,1.19268758]
[1770560607455,0.001,2120.2,2119.6,1.19268758]
[1770560608372,1.27279804,2120.2,2119.5,0.0011]
[1770560608866,1.17918966,2120.1,2119.5,0.0011]
[1770560609028,0.001,2120.2,2119.5,1.19378758]
[1770560610035,1.18014079,2120.2,2119.5,1.19378758]
[1770560610477,0.001,2120.2,2119.5,1.19378758]
[1770560610633,1.18013871,2120.2,2119.5,0.0011]
[1770560611038,1.27179804,2120.0,2119.3,0.0011]
[1770560613053,1.17930091,2119.9,2119.3,0.0011]
[1770560613452,2.45109895,2119.9,2119.3,0.0011]
[1770560617653,1.17930091,2119.9,2119.3,0.0011]
[1770560618386,1.1792782,2120.0,2119.3,0.0011]
[1770560618588,4.4762319,2120.1,2119.3,1.19378758]
[1770560620180,4.4762319,2120.1,2119.5,0.0011]
[1770560620388,0.001,2119.7,2119.5,0.0011]
[1770560620681,0.001,2119.7,2119.5,1.19378758]
[1770560621780,0.001,2120.2,2119.6,1.19268758]
[1770560622156,0.001,2120.2,2119.6,2.37211601]
[1770560623105,0.001,2120.2,2119.7,1.19268758]
[1770560623482,0.001,2120.2,2119.6,2.37211601]
[1770560624064,0.001,2120.2,2119.5,0.0011]
[1770560624278,1.18013404,2120.2,2119.5,0.0011]
[1770560624669,0.001,2120.2,2119.5,1.19378758]
[1770560626582,0.001,2120.2,2119.7,1.27838612]
[1770560628556,0.001,2120.2,2119.9,1.27838612]
[1770560630686,0.001,2120.2,2120.0,1.17924528]
[1770560631175,1.24967521,2120.2,2119.5,0.0011]
[1770560631368,0.001,2120.2,2119.6,1.1794641]
[1770560631755,0.001,2120.2,2119.5,0.0011]
[1770560632088,0.001,2120.0,2119.9,1.17929511]
[1770560632287,0.001,2120.2,2119.9,1.17929511]
[1770560632989,0.001,2120.2,2119.8,4.71736634]
[1770560633495,1.17982945,2120.8,2119.9,1.27838612]
[1770560633667,1.17980322,2120.8,2119.9,1.27838612]
[1770560634270,0.001,2120.8,2119.9,1.27838612]
[1770560634673,1.17980344,2120.8,2119.9,1.27838612]
[1770560634886,0.001,2120.8,2119.9,1.27838612]
[1770560635209,0.001,2120.8,2120.0,1.17924528]
[1770560637572,1.17980045,2120.8,2120.0,1.17924528]
[1770560637760,1.17980045,2120.8,2119.9,2.45764637]
[1770560638592,2.42847566,2120.8,2119.9,1.17926025]
[1770560639369,1.24867521,2120.7,2119.9,1.17929861]
[1770560640284,1.17891162,2120.6,2119.7,2.45775601]
[1770560640486,1.24867521,2120.5,2119.9,1.1792985]
[1770560640791,0.001,2120.8,2120.0,1.27838612]
[1770560640998,1.17980249,2120.8,2120.0,1.27838612]
[1770560641971,0.001,2120.8,2120.0,1.32544162]
[1770560642784,0.001,2120.8,2120.1,1.17918966]
[1770560642984,0.001,2120.8,2120.2,1.27838612]
[1770560643302,0.001,2121.1,2120.4,1.27838612]
[1770560643487,0.001,2121.1,2120.3,3.296]
[1770560643488,0.001,2121.1,2120.6,1.27838612]
[1770560643892,0.001,2121.3,2120.6,1.27838612]
[1770560644886,0.001,2121.3,2120.7,2.45724215]
[1770560645200,0.001,2121.3,2120.8,1.27838612]
[1770560646975,0.001,2121.3,2120.8,1.17879632]
[1770560648284,0.001,2121.3,2120.8,2.45718244]
[1770560648810,0.001,2121.3,2120.7,1.17882828]
[1770560649319,0.001,2121.3,2120.5,4.71572424]
[1770560649320,0.001,2121.3,2120.5,1.27838612]
[1770560651005,0.001,2121.3,2120.3,2.45743397]
[1770560651006,1.24967521,2121.3,2120.3,2.45743397]
[1770560651702,2.4282195,2121.3,2120.3,2.45743397]
[1770560652210,1.24867521,2121.2,2120.3,1.17904785]
[1770560653321,1.17954429,2121.3,2120.4,1.27838612]
[1770560654097,1.24967521,2121.3,2120.5,1.17896722]
[1770560654299,1.24967521,2121.3,2120.4,1.17899405]
[1770560655108,1.27797331,2121.0,2120.2,0.0011]
[1770560655416,1.27797331,2120.7,2120.0,0.0011]
[1770560655633,1.27797331,2120.4,2120.0,0.0011]
[1770560656016,1.27797331,2120.2,2120.0,0.0011]
[1770560656200,1.27797331,2120.2,2119.5,0.0011]
[1770560658322,2.45716297,2120.1,2119.5,0.0011]
[1770560658517,1.27797331,2120.0,2119.5,0.0011]
[1770560659898,1.17918966,2120.1,2119.5,0.0011]
[1770560660407,1.27797331,2120.0,2119.5,0.0011]
[1770560662721,2.45727422,2119.9,2119.5,0.0011]
[1770560663023,1.27797331,2119.8,2119.5,0.0011]
[1770560664222,1.17930091,2119.9,2119.5,0.0011]
[1770560665097,1.27797331,2120.1,2119.5,0.0011]
[1770560667325,1.17924528,2120.0,2119.5,0.0011]
[1770560669125,1.17924528,2120.0,2119.7,0.0011]
[1770560669321,0.001,2119.8,2119.5,0.0011]
[1770560670900,1.17896722,2120.5,2119.5,1.23135227]
[1770560671100,0.001,2120.3,2119.5,1.23135227]
[1770560671405,0.001,2120.3,2119.6,2.40972009]
[1770560671798,0.001,2120.3,2119.6,1.23025227]
[1770560672323,0.001,2120.3,2119.5,1.18058382]
[1770560672699,1.27897331,2120.3,2119.5,0.0011]
[1770560673322,1.27797331,2120.0,2119.5,0.0011]
[1770560673527,5.75427422,2119.9,2119.5,0.0011]
[1770560673828,5.75527422,2119.9,2119.5,0.0011]
[1770560674322,4.47730091,2119.9,2119.5,0.0011]
[1770560675525,5.75527422,2119.9,2119.5,0.0011]
[1770560676037,4.47730091,2119.9,2119.5,0.0011]
[1770560678012,1.18030091,2119.9,2119.5,0.0011]
[1770560680344,0.001,2119.8,2119.5,0.0011]
[1770560681131,1.17930091,2119.9,2119.7,0.0011]
[1770560681336,0.001,2119.8,2119.7,0.0011]
[1770560681841,1.17930091,2119.9,2119.7,0.0011]
[1770560682017,1.18030091,2119.9,2119.7,0.0011]
[1770560685947,1.17921898,2120.1,2119.7,0.0011]
[1770560686118,1.18017589,2120.2,2119.7,0.0011]
[1770560688542,1.18017589,2120.2,2119.7,1.26574677]
[1770560688543,0.001,2120.2,2119.7,1.26574677]
[1770560688737,1.25886667,2120.8,2119.7,1.26574677]
[1770560688738,5.97362759,2121.0,2119.7,1.26574677]
[1770560688937,3.297,2120.6,2119.7,1.26574677]
[1770560689829,1.17896722,2120.5,2119.8,2.44400331]
[1770560690231,1.17896722,2120.5,2119.7,1.18046955]
[1770560690452,0.001,2120.4,2119.7,2.44511632]
[1770560691039,0.001,2120.4,2119.8,1.26464677]
[1770560692153,0.001,2120.4,2119.9,2.44394768]
[1770560692842,0.001,2120.2,2119.9,2.44394768]
[1770560693344,0.001,2120.2,2119.7,0.0011]
[1770560693541,0.001,2120.1,2119.7,0.0011]
[1770560695275,0.0480555,2122.1,2119.7,0.0011]
[1770560695276,1.17882706,2120.8,2119.8,1.26464677]
[1770560695644,0.001,2120.7,2119.8,1.26464677]
[1770560700342,0.001,2120.7,2120.0,1.26464677]
[1770560701271,4.71561379,2121.1,2120.4,0.0470555]
[1770560701272,0.001,2121.1,2120.4,0.0470555]
[1770560701464,1.17932805,2121.7,2120.5,1.26464677]
[1770560701964,1.17932805,2121.7,2120.8,1.26464677]
[1770560702170,0.001,2121.7,2120.8,1.26464677]
[1770560702473,0.001,2121.7,2121.0,1.26464677]
[1770560702848,0.001,2121.7,2121.0,1.31170227]
[1770560703175,0.001,2121.7,2121.0,1.26464677]
[1770560704452,0.001,2121.7,2121.2,1.26464677]
[1770560706365,0.001,2121.7,2121.4,1.26464677]
[1770560706567,0.32196232,2122.0,2121.3,1.1785226]
[1770560707075,0.32196232,2122.0,2121.4,1.26464677]
[1770560707776,0.00056446,2122.1,2121.4,1.26464677]
[1770560708564,0.00056446,2122.1,2121.6,1.26464677]
[1770560711478,0.00056446,2122.1,2121.7,2.44294718]
[1770560711655,0.00056446,2122.1,2121.8,1.26464677]
[1770560713370,0.00056446,2122.1,2121.9,1.17818935]
[1770560714351,0.00056446,2122.1,2121.8,1.17822659]
[1770560715051,0.00056446,2122.1,2121.8,2.45826586]
[1770560715860,0.00056446,2122.1,2121.8,1.17822659]
[1770560717695,0.00056446,2122.1,2121.7,4.71319094]
[1770560717898,0.001,2121.9,2121.7,4.71319094]
[1770560718801,0.00056446,2122.1,2121.7,5.99323021]
[1770560719381,0.001,2122.7,2121.8,1.28003927]
[1770560719701,0.001,2122.7,2122.1,2.45811758]
[1770560719896,0.001,2122.7,2122.2,3.294]
[1770560720068,0.001,2122.7,2122.2,3.3410555]
[1770560720899,0.001,2122.7,2122.2,3.294]
[1770560721674,0.001,2122.7,2122.3,1.17796729]
[1770560723991,0.001,2122.7,2122.2,3.294]
[1770560724292,1.36523976,2122.7,2122.2,4.47202176]
[1770560724472,1.36523976,2122.7,2122.1,1.17803818]
[1770560724670,1.36523976,2122.7,2122.2,1.17801827]
[1770560724904,0.001,2122.7,2122.2,1.17801827]
[1770560725500,0.001,2122.7,2122.3,1.28003927]
[1770560725879,0.001,2122.7,2122.4,1.17791179]
[1770560728220,0.001,2122.9,2122.5,1.32709477]
[1770560729206,1.36523976,2123.7,2122.4,2.45795106]
[1770560729395,1.36423976,2123.6,2122.5,4.57303927]
[1770560729702,1.17819385,2123.7,2122.6,1.28003927]
[1770560729893,0.001,2123.7,2122.6,1.28003927]
[1770560730100,0.001,2123.7,2122.5,3.3400555]
[1770560730101,0.001,2123.7,2123.2,1.17746797]
[1770560730294,0.001,2123.7,2122.7,1.28003927]
[1770560730496,0.001,2123.7,2123.1,1.17751242]
[1770560731376,0.001,2123.7,2122.9,5.99041297]
[1770560731580,0.001,2123.7,2122.9,4.7103737]
[1770560731802,0.001,2123.7,2123.0,1.17754028]
[1770560732182,0.001,2123.7,2122.9,1.17760397]
[1770560733092,1.36523976,2123.7,2122.9,1.17760397]
[1770560733684,0.001,2123.7,2123.0,1.28003927]
[1770560733882,0.001,2123.7,2123.1,1.32709477]
[1770560734084,0.001,2123.7,2122.9,2.45764324]
[1770560734307,0.001,2123.7,2123.0,1.28003927]
[1770560734516,0.001,2123.7,2123.1,1.28003927]
[1770560734718,0.001,2124.3,2123.2,1.32709477]
[1770560735285,0.001,2124.3,2123.2,1.28003927]
[1770560735481,0.001,2124.3,2123.4,1.28003927]
[1770560736226,0.001,2124.3,2123.5,2.45734089]
[1770560736389,0.001,2124.3,2123.6,4.57203927]
[1770560736691,0.001,2124.3,2123.6,3.292]
[1770560737092,0.001,2124.3,2123.6,4.57203927]
[1770560737392,0.001,2124.3,2123.7,1.28003927]
[1770560738202,0.001,2124.3,2123.8,1.32709477]
[1770560738404,0.001,2124.3,2123.9,2.45711917]
[1770560738608,0.001,2124.3,2123.9,1.1770799]
[1770560739209,0.001,2124.3,2123.2,1.28003927]
[1770560739406,1.36523976,2124.3,2123.6,1.17724255]
[1770560739599,0.001,2124.3,2123.7,1.17718279]
[1770560739799,0.001,2124.3,2123.6,1.17722874]
[1770560740112,0.001,2124.3,2123.5,1.17726093]
[1770560740282,0.001,2124.3,2123.4,1.17735706]
[1770560740283,2.54115342,2124.2,2123.4,1.17735706]
[1770560740483,1.36423976,2124.1,2123.0,1.17753995]
[1770560740697,1.36423976,2124.1,2123.1,1.17751538]
[1770560740909,1.36423976,2124.1,2123.1,4.71009271]
[1770560741105,1.36423976,2124.1,2123.2,1.17742604]
[1770560741299,1.36423976,2124.1,2123.1,1.17749503]
[1770560742430,2.54126424,2124.0,2123.0,4.71029542]
[1770560742717,2.54126424,2124.0,2123.6,0.0011]
[1770560742890,1.36423976,2123.9,2122.8,4.71053901]
[1770560743091,1.36423976,2123.9,2123.4,0.0011]
[1770560743500,0.001,2124.1,2123.4,0.0011]
[1770560748320,1.34929916,2124.1,2123.4,0.0011]
[1770560749204,2.52532364,2124.0,2123.4,0.0011]
[1770560749522,1.34829916,2124.0,2123.4,0.0011]
[1770560752325,1.34829916,2123.8,2123.4,0.0011]
[1770560754303,1.17719075,2123.7,2123.4,0.0011]
[1770560756009,2.52546377,2123.8,2123.6,0.0011]
[1770560756320,2.52646377,2123.8,2123.6,0.0011]
[1770560757923,1.34829916,2123.7,2123.6,0.0011]
[1770560758099,1.34829916,2123.7,2122.8,1.17768002]
[1770560758296,1.34829916,2123.7,2122.9,1.17763216]
[1770560758497,1.17724618,2123.6,2122.8,1.17764696]
[1770560758695,2.52554534,2123.6,2122.8,1.17764696]
[1770560760429,1.34829916,2123.5,2122.7,4.46873861]
[1770560760630,2.52565622,2123.4,2122.5,1.26712481]
[1770560760824,2.52565622,2123.4,2122.7,1.17774397]
[1770560761515,1.17732155,2123.5,2122.7,1.17774397]
[1770560761712,1.34829916,2123.4,2122.5,1.17891153]
[1770560761917,1.34829916,2123.4,2122.6,1.17779917]
[1770560762115,1.34829916,2123.4,2122.5,1.17891742]
[1770560762909,2.52571167,2123.3,2122.5,0.0011]
[1770560763103,3.291,2123.6,2122.5,1.26712481]
[1770560763428,1.1781384,2123.8,2122.9,1.31308031]
[1770560764935,0.001,2123.8,2123.0,1.17757889]
[1770560766104,1.34929916,2123.8,2122.5,0.0011]
[1770560766307,1.34929916,2123.8,2122.7,1.17771794]
[1770560766507,1.34929916,2123.8,2122.7,1.17774494]
[1770560766807,1.34929916,2123.8,2122.6,1.17775755]
[1770560767020,1.34829916,2123.6,2122.5,4.71233589]
[1770560767216,1.34829916,2123.6,2122.5,1.1789563]
[1770560767424,1.34829916,2123.5,2122.5,1.1789563]
[1770560767833,3.291,2123.6,2122.6,1.26602481]
[1770560768331,4.63929916,2123.6,2123.2,0.0011]
[1770560768515,1.34829916,2123.6,2123.2,0.0011]
[1770560769122,2.52555821,2123.6,2123.2,0.0011]
[1770560769309,1.34829916,2123.6,2123.2,0.0011]
[1770560769518,1.17722439,2123.7,2123.2,0.0011]
[1770560770322,0.001,2123.8,2123.2,0.0011]
[1770560773046,0.001,2123.8,2123.3,1.17741251]
[1770560774441,0.001,2123.8,2123.3,2.50208201]
[1770560774945,0.001,2123.8,2123.3,1.17741251]
[1770560775448,0.001,2123.8,2123.2,1.37012636]
[1770560776257,0.001,2123.8,2123.2,0.0011]
[1770560776947,1.31964611,2123.8,2123.2,0.0011]
[1770560777522,1.31864611,2123.6,2123.2,0.0011]
[1770560777846,1.31864611,2123.6,2123.0,0.0011]
[1770560779433,2.49594773,2123.5,2123.0,0.0011]
[1770560779623,1.31864611,2123.4,2123.0,0.0011]
[1770560780937,1.31864611,2123.4,2123.2,0.0011]
[1770560782167,1.17735847,2123.4,2123.2,0.0011]
[1770560783336,0.001,2123.6,2123.2,0.0011]
[1770560783538,1.1773152,2123.5,2123.2,0.0011]
[1770560784140,2.4969023,2123.6,2123.2,0.0011]
[1770560784450,1.31864611,2123.5,2123.0,0.0011]
[1770560784842,1.17825619,2123.6,2123.0,0.0011]
[1770560785788,1.31864611,2123.5,2123.0,0.0011]
[1770560786066,2.49600317,2123.4,2123.0,0.0011]
[1770560790985,1.31864611,2123.2,2122.3,0.0011]
[1770560791342,1.17752343,2123.1,2122.3,0.0011]
[1770560791544,1.31864611,2123.0,2122.3,0.0011]
[1770560794085,1.31864611,2122.8,2122.3,0.0011]
[1770560794289,1.31864611,2122.6,2122.3,0.0011]
[1770560795817,1.31864611,2122.6,2122.1,0.0011]
[1770560796112,1.31864611,2122.4,2121.4,1.37012636]
[1770560796286,4.7114252,2122.6,2121.4,1.37012636]
[1770560796287,1.17782356,2122.6,2121.4,1.37012636]
[1770560796486,4.92756314,2123.1,2122.0,1.36902636]
[1770560797198,1.17756314,2123.1,2122.0,1.36902636]
[1770560797902,0.001,2123.2,2122.1,1.17807831]
[1770560798237,0.001,2123.2,2122.2,1.36902636]
[1770560798875,1.31964611,2123.2,2122.2,1.36902636]
[1770560799077,1.31964611,2123.2,2122.0,1.17810347]
[1770560799275,1.31964611,2123.2,2121.9,1.17816083]
[1770560799692,1.31964611,2123.2,2121.8,1.17823377]
[1770560799898,1.17752343,2123.1,2121.8,1.17824488]
[1770560800193,1.17752343,2123.1,2121.9,1.36902636]
[1770560802098,4.71109373,2123.2,2122.1,1.36902636]
[1770560803881,1.31864611,2123.1,2122.0,1.17813383]
[1770560804587,1.17757889,2123.0,2121.9,1.17815958]
[1770560804911,1.31864611,2122.9,2121.8,1.17822037]
[1770560805112,1.17757889,2123.0,2121.7,8.00519292]
[1770560805113,1.30387353,2122.7,2122.2,0.0011]
[1770560806899,1.17780081,2122.6,2122.2,0.0011]
[1770560807687,1.17858697,2123.0,2122.2,1.37530598]
[1770560807986,1.30387353,2122.9,2122.2,0.0011]
[1770560808209,1.17858697,2123.0,2122.2,0.0011]
[1770560810414,1.30487353,2123.0,2122.2,0.0011]
[1770560813015,1.17763436,2122.9,2122.2,0.0011]
[1770560813316,1.17858766,2123.0,2122.2,1.37530598]
[1770560813717,1.17858766,2123.0,2121.7,4.71253534]
[1770560813718,1.35092903,2122.9,2121.2,0.0011]
[1770560813906,1.30387353,2122.0,2121.2,0.0011]
[1770560814106,0.0470555,2121.8,2121.2,0.0011]
[1770560814413,3.293,2121.9,2121.2,0.0011]
[1770560815119,1.17824488,2121.8,2121.2,0.0011]
[1770560815291,3.293,2121.7,2121.2,0.0011]
[1770560816616,3.293,2121.6,2121.2,0.0011]
[1770560817214,4.47135897,2121.6,2121.2,0.0011]
[1770560817601,3.293,2121.5,2121.2,0.0011]
[1770560818826,1.17813383,2122.0,2121.2,0.0011]
[1770560819005,3.293,2121.9,2121.2,0.0011]
[1770560819429,1.17824488,2121.8,2121.2,0.0011]
[1770560820329,1.30387353,2121.7,2121.2,0.0011]
[1770560821133,1.30387353,2121.7,2120.5,0.0011]
[1770560821420,1.17835595,2121.6,2120.5,0.0011]
[1770560821601,2.48222948,2121.6,2120.5,0.0011]
[1770560824502,1.30387353,2122.2,2120.5,1.37530598]
[1770560824823,3.02987353,2122.1,2120.5,1.37530598]
[1770560825116,4.71225999,2122.2,2120.7,1.37420598]
[1770560825294,3.294,2122.1,2120.7,1.37420598]
[1770560826120,1.35092903,2122.0,2120.7,1.37420598]
[1770560826320,2.48206288,2121.9,2120.8,1.17880045]
[1770560827325,1.30387353,2121.8,2120.8,1.17880045]
[1770560828604,4.47230041,2121.7,2120.8,1.17880045]
[1770560829415,4.47230041,2121.7,2120.9,0.0011]
[1770560829659,3.294,2121.8,2120.9,1.37530598]
[1770560830130,0.0470555,2121.7,2120.9,0.0011]
[1770560831212,1.17835595,2121.6,2120.9,0.0011]